bitfinex-derivatives/quotes_SOLF0:USTF0_20250626
["timestamp","ask_amount","ask_price","bid_price","bid_amount"]
[1750968321748,4.53975177,142.29,142.26,7.0267]
[1750968321947,4.53975177,142.29,142.25,7.027]
[1750968322241,4.53975177,142.29,142.24,35.98]
[1750968322446,11.56535177,142.29,142.24,35.98]
[1750968322640,11.61415177,142.31,142.24,35.98]
[1750968322838,35.98,142.32,142.25,4.53975177]
[1750968323043,40.51975177,142.32,142.25,4.53975177]
[1750968323744,40.51975177,142.32,142.24,35.98]
[1750968324042,4.53975177,142.3,142.24,35.98]
[1750968324240,11.56515177,142.3,142.24,35.98]
[1750968324439,4.53975177,142.3,142.24,35.98]
[1750968324639,4.53975177,142.28,142.24,35.98]
[1750968324945,4.53975177,142.28,142.25,7.0274]
[1750968325340,11.56585177,142.28,142.25,7.0274]
[1750968325652,11.56585177,142.28,142.26,7.0268]
[1750968325841,4.53975177,142.28,142.26,7.0268]
[1750968326243,4.53975177,142.28,142.25,7.0273]
[1750968326543,11.56595177,142.28,142.25,7.0273]
[1750968327143,7.0265,142.27,142.25,7.0273]
[1750968327440,7.0265,142.27,142.24,35.98]
[1750968327645,11.56595177,142.28,142.24,35.98]
[1750968328047,4.53975177,142.28,142.25,7.0271]
[1750968328259,4.53975177,142.26,142.21,35.96]
[1750968328641,4.53975177,142.24,142.21,35.96]
[1750968329134,4.53975177,142.24,142.21,7.0291]
[1750968329341,11.56805177,142.24,142.21,7.0291]
[1750968329543,4.53975177,142.24,142.21,7.0291]
[1750968329939,4.53975177,142.24,142.2,7.0296]
[1750968330135,4.53975177,142.24,142.18,162.18303718]
[1750968330850,7.0286,142.23,142.18,162.18303718]
[1750968331448,7.0286,142.23,142.2,7.0296]
[1750968331650,7.0286,142.23,142.18,162.18303718]
[1750968332951,7.0286,142.23,142.2,7.0296]
[1750968334958,7.0289,142.22,142.2,7.0296]
[1750968335550,7.0287,142.23,142.2,7.0296]
[1750968336254,7.029,142.22,142.2,7.0296]
[1750968336751,7.0286,142.23,142.2,7.0296]
[1750968338150,7.029,142.22,142.2,7.0296]
[1750968339051,4.53975177,142.22,142.18,126.22303718]
[1750968339246,4.55936672,142.21,142.12,7.0965]
[1750968339452,4.53975177,142.19,142.12,7.0965]
[1750968339648,7.0308,142.19,142.13,4.53975177]
[1750968342550,7.03,142.2,142.13,4.53975177]
[1750968343158,7.03,142.2,142.18,7.0308]
[1750968343554,42.9897,142.21,142.15,4.53975177]
[1750968344053,42.9897,142.21,142.19,7.0301]
[1750968344244,17.32917994,142.4,142.19,7.0301]
[1750968344245,9.436414,142.24,142.19,4.53975177]
[1750968344445,633.84343511,142.34,142.22,4.53975177]
[1750968344446,4.53975177,142.31,142.22,4.53975177]
[1750968344646,11.55834928,142.3,142.24,4.53975177]
[1750968344862,45.38149338,142.32,142.27,7.026]
[1750968345050,45.38149338,142.32,142.26,4.53975177]
[1750968345051,4.53353588,142.31,142.26,4.53975177]
[1750968345361,40.47975177,142.32,142.24,35.94]
[1750968345660,4.53299463,142.31,142.24,40.47975177]
[1750968345850,40.47975177,142.32,142.26,4.53975177]
[1750968346356,40.47297327,142.32,142.26,4.53975177]
[1750968346748,4.53975177,142.36,142.28,4.53975177]
[1750968346948,4.53618598,142.35,142.3,4.53975177]
[1750968347151,4.53618598,142.34,142.32,4.53975177]
[1750968347359,35.92,142.37,142.32,4.53975177]
[1750968347558,4.53830412,142.36,142.34,7.0229]
[1750968347757,4.53830412,142.35,142.34,7.0229]
[1750968348461,35.92,142.37,142.32,4.53975177]
[1750968349260,18.74458936,142.39,142.36,7.0217]
[1750968349457,4.35728936,142.39,142.34,4.53975177]
[1750968349773,40.27728936,142.4,142.34,4.53975177]
[1750968350061,42.9404,142.4,142.34,4.53975177]
[1750968350454,35.92,142.4,142.37,7.021]
[1750968351261,42.9401,142.4,142.37,7.021]
[1750968351762,35.92,142.4,142.36,7.0218]
[1750968351958,4.96905108,142.42,142.36,40.45975177]
[1750968352157,4.96905108,142.43,142.38,4.53975177]
[1750968352362,7.0181,142.44,142.41,7.0191]
[1750968352563,5.09690655,142.44,142.39,4.53975177]
[1750968352864,4.53975177,142.42,142.36,35.92]
[1750968353054,40.45975177,142.42,142.34,4.53975177]
[1750968353452,40.45975177,142.42,142.36,7.0218]
[1750968353656,45.55740927,142.42,142.36,7.0218]
[1750968354257,4.53975177,142.4,142.35,7.0223]
[1750968354650,4.53975177,142.4,142.34,4.53975177]
[1750968354852,4.53975177,142.4,142.36,7.0217]
[1750968355052,11.56025177,142.4,142.36,7.0217]
[1750968355362,40.45975177,142.42,142.34,4.53975177]
[1750968355957,7.0197,142.41,142.34,4.53975177]
[1750968356361,7.0197,142.41,142.35,6.7756938]
[1750968356565,7.0197,142.41,142.37,7.0211]
[1750968356762,7.0197,142.41,142.35,6.7756938]
[1750968357266,7.0201,142.4,142.37,7.0211]
[1750968357466,42.6956938,142.42,142.33,42.6956938]
[1750968357867,42.6956938,142.42,142.35,7.0223]
[1750968358068,42.6956938,142.42,142.33,42.6956938]
[1750968358263,7.0201,142.4,142.36,7.0216]
[1750968358467,42.6956938,142.42,142.33,42.6956938]
[1750968359071,7.0204,142.4,142.36,7.0217]
[1750968359364,35.92,142.42,142.35,6.7756938]
[1750968360369,35.9,142.45,142.37,6.7756938]
[1750968360571,35.9,142.45,142.37,42.6756938]
[1750968360963,7.0189,142.43,142.37,42.6756938]
[1750968361358,5.08099093,142.46,142.39,6.7756938]
[1750968361564,48.18869093,142.47,142.39,6.7756938]
[1750968361962,6.7756938,142.46,142.37,42.6756938]
[1750968362565,7.019,142.43,142.4,7.0197]
[1750968362864,6.7756938,142.44,142.37,35.9]
[1750968363772,7.0193,142.42,142.39,7.0205]
[1750968363976,6.7756938,142.43,142.37,35.9]
[1750968364161,48.18079835,142.47,142.39,6.7756938]
[1750968364472,35.9,142.56,142.45,6.7756938]
[1750968364673,6.7756938,142.56,142.48,6.7756938]
[1750968364859,4.39230814,142.55,142.47,35.9]
[1750968365074,6.7756938,142.54,142.47,35.9]
[1750968365270,6.7756938,142.52,142.44,35.9]
[1750968365467,6.7756938,142.5,142.42,42.6756938]
[1750968365671,7.0158,142.49,142.42,42.6756938]
[1750968365872,45.0347938,142.51,142.42,42.6756938]
[1750968366067,38.2591,142.51,142.44,6.7756938]
[1750968366273,6.7756938,142.54,142.44,6.7756938]
[1750968366571,6.7756938,142.54,142.46,6.7756938]
[1750968366772,7.0145,142.52,142.48,7.0156]
[1750968366975,7.0145,142.52,142.46,42.6756938]
[1750968367771,7.0145,142.52,142.48,7.0156]
[1750968368366,7.0145,142.52,142.46,42.6756938]
[1750968368774,35.9,142.55,142.46,42.6756938]
[1750968369166,35.9,142.55,142.48,6.7756938]
[1750968369777,7.0134,142.54,142.48,6.7756938]
[1750968369983,35.9,142.55,142.48,6.7756938]
[1750968370277,7.0133,142.54,142.5,7.0148]
[1750968370577,7.0133,142.54,142.48,6.7756938]
[1750968370777,7.0128,142.55,142.48,6.7756938]
[1750968371474,7.0123,142.56,142.48,6.7756938]
[1750968371672,2.3591,142.57,142.5,6.7756938]
[1750968371880,40.7897,142.58,142.51,37.02]
[1750968372486,47.8012,142.58,142.51,37.02]
[1750968373180,39.5228,142.61,142.52,6.7756938]
[1750968373388,46.2984938,142.61,142.52,6.7756938]
[1750968373681,46.2984938,142.61,142.56,7.0121]
[1750968373981,46.2984938,142.61,142.52,6.7756938]
[1750968374382,46.2984938,142.61,142.55,7.0125]
[1750968374588,46.2984938,142.61,142.52,6.7756938]
[1750968374781,39.5228,142.61,142.52,6.7756938]
[1750968374985,4.8017,142.63,142.54,6.7756938]
[1750968375182,4.8017,142.63,142.55,37.0]
[1750968375375,7.0099,142.61,142.58,7.0111]
[1750968375886,7.0099,142.61,142.59,7.0106]
[1750968376380,675.02039871,142.64,142.56,6.7756938]
[1750968376577,43.14039871,142.64,142.56,6.7756938]
[1750968376774,6.14039871,142.64,142.58,6.7756938]
[1750968376972,37.0,142.75,142.62,6.7756938]
[1750968377186,2.5038,142.74,142.68,6.7756938]
[1750968377386,2.5038,142.74,142.68,37.0]
[1750968377387,7.0053,142.7,142.68,37.0]
[1750968377588,9.2794938,142.74,142.65,6.7756938]
[1750968377877,7.0047,142.72,142.68,7.0059]
[1750968378182,9.50172519,142.73,142.65,37.0]
[1750968378482,6.7756938,142.72,142.65,37.0]
[1750968378685,6.7756938,142.7,142.62,37.0]
[1750968378884,2.5021,142.69,142.62,37.0]
[1750968379077,6.7756938,142.68,142.62,37.0]
[1750968379282,2.5021,142.69,142.62,37.0]
[1750968379485,7.0082,142.65,142.62,37.0]
[1750968380186,7.0073,142.66,142.62,44.0092]
[1750968380382,6.7756938,142.68,142.62,44.0092]
[1750968380789,7.0076,142.66,142.62,44.0092]
[1750968380987,7.0076,142.66,142.63,7.0086]
[1750968381200,2.5021,142.69,142.62,37.0]
[1750968381683,2.5021,142.69,142.63,7.0086]
[1750968382195,7.007,142.67,142.63,7.0086]
[1750968382489,7.007,142.67,142.64,7.0082]
[1750968383290,7.0072,142.66,142.63,7.0085]
[1750968383486,9.2777938,142.69,142.62,37.0]
[1750968383684,9.2777938,142.69,142.62,44.0089]
[1750968383884,9.2777938,142.69,142.62,37.0]
[1750968384292,7.0075,142.66,142.63,7.0087]
[1750968384692,9.2777938,142.69,142.62,37.0]
[1750968385091,6.7756938,142.73,142.63,6.7756938]
[1750968385288,4.653,142.72,142.63,6.7756938]
[1750968385978,7.0061,142.69,142.65,7.0075]
[1750968386384,7.0061,142.69,142.63,6.7756938]
[1750968387587,7.0061,142.69,142.66,7.0072]
[1750968387787,6.7756938,142.7,142.62,37.0]
[1750968388085,6.7756938,142.7,142.63,7.0086]
[1750968388086,43.7556938,142.7,142.63,7.0086]
[1750968388281,36.98,142.7,142.63,6.7756938]
[1750968388786,7.0058,142.69,142.66,7.0069]
[1750968388982,36.98,142.7,142.63,6.7756938]
[1750968389380,4.653,142.72,142.63,6.7756938]
[1750968390091,6.7756938,142.71,142.62,37.0]
[1750968390391,7.0066,142.68,142.62,43.7756938]
[1750968391190,7.0068,142.67,142.62,37.0]
[1750968391789,7.0073,142.66,142.62,37.0]
[1750968391989,6.7756938,142.69,142.62,37.0]
[1750968392697,2.4632,142.68,142.62,37.0]
[1750968392993,7.0075,142.66,142.63,7.0086]
[1750968393585,7.0075,142.66,142.64,7.0082]
[1750968393790,7.0075,142.66,142.62,37.0]
[1750968393993,7.0075,142.66,142.63,7.0085]
[1750968394492,6.7756938,142.65,142.59,36.96]
[1750968394697,9.0421938,142.65,142.59,36.96]
[1750968395085,6.7756938,142.63,142.56,39.4584]
[1750968395293,6.7756938,142.62,142.56,36.96]
[1750968396089,7.0105,142.6,142.56,36.96]
[1750968396294,7.0105,142.6,142.57,7.0112]
[1750968396895,7.0098,142.61,142.58,7.0111]
[1750968398594,7.0103,142.6,142.57,7.0115]
[1750968399397,7.0099,142.61,142.58,7.0111]
[1750968399597,6.7756938,142.62,142.56,36.96]
[1750968400102,7.0106,142.6,142.57,7.0115]
[1750968406103,11.97715406,142.64,142.58,7.0111]
[1750968406306,2.4917,142.64,142.58,4.50336893]
[1750968406504,39.2265,142.65,142.58,4.50336893]
[1750968406706,7.009,142.63,142.6,7.0101]
[1750968407010,39.2265,142.65,142.58,4.50336893]
[1750968407207,46.2345,142.65,142.62,7.0088]
[1750968407412,46.2345,142.65,142.58,4.50336893]
[1750968407612,39.2265,142.65,142.58,4.50336893]
[1750968407908,36.96,142.65,142.58,4.50336893]
[1750968408308,43.968,142.65,142.62,7.0089]
[1750968410016,7.0083,142.64,142.61,7.0095]
[1750968412217,5.05363161,142.63,142.61,7.0095]
[1750968412416,36.96,142.65,142.6,7.0099]
[1750968412613,9.55007976,142.64,142.6,7.0099]
[1750968412917,11.50508443,142.63,142.6,7.0099]
[1750968413115,9.36878613,142.64,142.6,7.0099]
[1750968413312,7.0093,142.62,142.59,7.0104]
[1750968413519,7.0093,142.62,142.56,50.84818054]
[1750968413818,7.009,142.63,142.6,7.0101]
[1750968414209,36.96,142.65,142.56,50.84818054]
[1750968414519,7.009,142.63,142.56,50.84818054]
[1750968414720,36.96,142.65,142.56,50.84818054]
[1750968414912,7.0092,142.62,142.59,7.0104]
[1750968415617,7.0092,142.62,142.56,44.0945]
[1750968415817,7.0092,142.62,142.56,50.84818054]
[1750968416208,7.0092,142.62,142.59,7.0103]
[1750968416516,7.0092,142.62,142.56,50.84818054]
[1750968417612,7.0089,142.63,142.6,7.0099]
[1750968417817,36.96,142.65,142.57,6.75368054]
[1750968418021,9.39855614,142.64,142.57,6.75368054]
[1750968418219,11.67618054,142.68,142.59,6.75368054]
[1750968418410,9.40183078,142.67,142.6,37.38]
[1750968418722,7.0078,142.65,142.6,37.38]
[1750968418919,9.40195722,142.64,142.6,37.38]
[1750968419210,7.0081,142.65,142.62,7.009]
[1750968419410,9.40509654,142.64,142.6,37.38]
[1750968419616,9.40509654,142.63,142.6,37.38]
[1750968419816,7.0086,142.64,142.61,7.0094]
[1750968420210,4.97860133,142.63,142.61,7.0094]
[1750968420513,7.0087,142.63,142.61,7.0094]
[1750968421714,7.0087,142.63,142.57,37.38]
[1750968421919,7.0083,142.64,142.57,37.38]
[1750968422413,2.4632,142.68,142.6,6.75368054]
[1750968422620,9.42693731,142.67,142.61,37.38]
[1750968422917,2.4632,142.68,142.61,37.38]
[1750968422918,39.7105,142.69,142.61,37.38]
[1750968423118,9.42693808,142.68,142.61,37.38]
[1750968423315,9.42693808,142.67,142.61,37.38]
[1750968423621,39.7105,142.69,142.62,6.75368054]
[1750968423923,39.7105,142.69,142.62,9.15388054]
[1750968424220,44.386,142.69,142.66,7.0067]
[1750968424621,7.0063,142.68,142.66,7.0067]
[1750968425710,37.38,142.69,142.62,13.78378054]
[1750968425913,2.4167,142.72,142.64,6.75368054]
[1750968426217,9.44471845,142.71,142.62,7.0301]
[1750968426424,9.17038054,142.72,142.66,7.0072]
[1750968426425,7.006,142.69,142.66,7.0072]
[1750968426616,7.006,142.69,142.62,7.0301]
[1750968426617,6.75368054,142.7,142.62,7.0301]
[1750968426926,7.0066,142.68,142.65,7.0074]
[1750968428413,7.0071,142.67,142.62,4.7497]
[1750968428614,2.4167,142.72,142.62,2.4002]
[1750968428615,6.75368054,142.68,142.62,2.4002]
[1750968429125,37.38,142.69,142.62,2.4002]
[1750968429621,44.386,142.69,142.66,7.0071]
[1750968431125,6.7938228,142.75,142.68,4.5003228]
[1750968431529,11.7940278,142.75,142.68,4.5003228]
[1750968431927,7.0038,142.74,142.7,7.005]
[1750968432127,7.0038,142.74,142.68,4.5003228]
[1750968432527,7.0038,142.74,142.7,7.0049]
[1750968432727,7.0038,142.74,142.68,4.5003228]
[1750968433227,9.2965,142.75,142.68,4.5003228]
[1750968433417,4.5003228,142.79,142.71,4.5003228]
[1750968433621,7.0022,142.77,142.73,7.0036]
[1750968433831,7.0022,142.77,142.71,4.5003228]
[1750968434326,7.0022,142.77,142.73,7.0035]
[1750968434527,7.0024,142.76,142.73,7.0035]
[1750968434927,7.0024,142.76,142.72,7.0041]
[1750968435124,7.0031,142.75,142.72,7.0041]
[1750968435319,4.5003228,142.75,142.68,6.8697228]
[1750968435524,4.5003228,142.75,142.71,7.0044]
[1750968436230,4.5003228,142.75,142.67,37.38]
[1750968436430,4.5003228,142.73,142.67,37.38]
[1750968436734,7.0047,142.72,142.67,37.38]
[1750968437130,7.0047,142.72,142.68,7.006]
[1750968437430,4.5003228,142.73,142.67,37.38]
[1750968437631,4.5003228,142.73,142.67,44.3864]
[1750968438021,7.0052,142.71,142.67,44.3864]
[1750968438330,4.5003228,142.73,142.68,7.0062]
[1750968438632,7.0045,142.72,142.68,7.0062]
[1750968438832,4.5003228,142.73,142.67,44.3863]
[1750968439024,4.5003228,142.73,142.67,37.38]
[1750968440331,4.5003228,142.73,142.65,4.5003228]
[1750968440535,37.36,142.72,142.65,4.5003228]
[1750968441024,7.0055,142.7,142.67,7.0064]
[1750968441532,7.0058,142.69,142.66,7.007]
[1750968442231,7.0054,142.7,142.66,7.007]
[1750968442432,37.36,142.72,142.65,4.5003228]
[1750968442826,7.0052,142.71,142.67,7.0063]
[1750968443320,37.36,142.72,142.67,7.0063]
[1750968443526,7.0052,142.71,142.67,7.0063]
[1750968443834,37.36,142.72,142.67,7.0063]
[1750968444029,7.0055,142.7,142.67,7.0063]
[1750968444728,7.005,142.71,142.65,4.5003228]
[1750968445429,7.005,142.71,142.68,7.0059]
[1750968445736,37.36,142.72,142.67,4.5003228]
[1750968446137,44.3645,142.72,142.69,7.0055]
[1750968446935,37.36,142.72,142.7,7.0052]
[1750968447332,7.004,142.73,142.7,7.0052]
[1750968447533,7.0043,142.72,142.69,7.0055]
[1750968447925,41.8603228,142.75,142.68,4.5003228]
[1750968448130,7.0035,142.74,142.7,4.5003228]
[1750968448326,37.36,142.75,142.7,4.5003228]
[1750968449434,7.0033,142.74,142.71,7.0044]
[1750968453135,7.004,142.73,142.7,7.005]
[1750968454431,7.0043,142.72,142.7,7.005]
[1750968454633,7.0043,142.72,142.68,41.8603228]
[1750968454634,41.8603228,142.75,142.69,7.0057]
[1750968455238,7.0046,142.72,142.69,7.0057]
[1750968455642,41.8603228,142.75,142.69,7.0057]
[1750968456135,46.92945315,142.75,142.69,7.0057]
[1750968456334,7.0046,142.72,142.69,7.0057]
[1750968457739,7.0042,142.73,142.68,41.8603228]
[1750968458137,46.93139061,142.75,142.68,41.8603228]
[1750968458331,7.0043,142.72,142.68,41.8603228]
[1750968458533,41.8603228,142.75,142.68,41.8603228]
[1750968458733,7.0041,142.73,142.7,7.0049]
[1750968458933,41.8603228,142.75,142.7,7.0049]
[1750968459836,41.8603228,142.75,142.68,7.006]
[1750968460138,7.0047,142.72,142.67,4.5003228]
[1750968460345,7.0047,142.72,142.69,7.0055]
[1750968461742,7.0049,142.71,142.68,7.006]
[1750968462340,7.0049,142.71,142.67,4.5003228]
[1750968463041,7.0049,142.71,142.68,7.006]
[1750968463444,4.5003228,142.73,142.65,41.8603228]
[1750968463741,9.01443428,142.73,142.65,41.8603228]
[1750968463937,7.0056,142.7,142.67,7.0066]
[1750968464243,5.08580366,142.72,142.65,41.8603228]
[1750968464546,7.0055,142.7,142.67,7.0067]
[1750968465138,5.08580242,142.72,142.65,37.36]
[1750968465339,4.5003228,142.76,142.68,4.5003228]
[1750968465639,7.0038,142.73,142.68,11.5061228]
[1750968465839,7.0038,142.73,142.68,4.5003228]
[1750968466040,4.51597124,142.75,142.68,4.5003228]
[1750968466343,4.51597124,142.75,142.71,7.0045]
[1750968466344,7.003,142.75,142.71,7.0045]
[1750968467046,36.84,142.77,142.7,4.5003228]
[1750968467249,9.59079838,142.76,142.7,4.5003228]
[1750968467543,12.07956875,142.75,142.71,7.0043]
[1750968467844,7.0031,142.75,142.7,4.5003228]
[1750968468246,7.0009,142.79,142.7,4.5003228]
[1750968468443,5.07769391,142.78,142.73,4.5003228]
[1750968468748,41.35532491,142.8,142.73,4.5003228]
[1750968468947,16.59275659,142.79,142.76,7.0023]
[1750968469149,5.07623168,142.78,142.76,7.0023]
[1750968469348,7.0012,142.79,142.76,7.0023]
[1750968469546,5.07510659,142.78,142.76,7.0023]
[1750968469853,7.0012,142.79,142.76,7.0023]
[1750968470047,5.07510659,142.78,142.76,7.0023]
[1750968470349,7.0012,142.79,142.76,7.0023]
[1750968470847,7.0012,142.79,142.75,7.0026]
[1750968471651,36.84,142.8,142.75,7.0026]
[1750968471848,9.59278955,142.79,142.75,7.0026]
[1750968472048,36.84,142.8,142.75,7.0026]
[1750968472349,16.59379219,142.79,142.75,7.0026]
[1750968472538,5.0799481,142.78,142.75,7.0026]
[1750968472738,7.0013,142.79,142.75,7.0026]
[1750968473142,7.0014,142.78,142.75,7.0026]
[1750968473342,41.38684582,142.8,142.73,4.49354999]
[1750968473651,5.09154736,142.79,142.73,4.49354999]
[1750968473851,7.0021,142.77,142.73,11.49704999]
[1750968474046,7.0021,142.77,142.73,4.49354999]
[1750968474550,7.0024,142.76,142.73,4.49354999]
[1750968475547,7.0024,142.76,142.73,11.49694999]
[1750968475746,7.0024,142.76,142.73,7.0034]
[1750968475950,4.49354999,142.77,142.68,8.535602]
[1750968476147,41.94820704,142.76,142.69,41.31354999]
[1750968476451,7.0036,142.74,142.69,41.31354999]
[1750968476652,7.0036,142.74,142.7,7.0048]
[1750968477151,7.0036,142.74,142.69,41.31354999]
[1750968478453,7.0031,142.75,142.71,4.49354999]
[1750968478752,36.82,142.76,142.72,7.0039]
[1750968478962,5.12889558,142.75,142.72,7.0039]
[1750968479143,7.003,142.75,142.72,7.0039]
[1750968480247,36.82,142.79,142.71,4.49354999]
[1750968480456,9.42605445,142.78,142.71,4.49354999]
[1750968480654,5.12838266,142.77,142.71,4.49354999]
[1750968480857,4.29767179,142.78,142.71,4.49354999]
[1750968481059,5.12779754,142.77,142.71,4.49354999]
[1750968481356,4.29767179,142.78,142.71,4.49354999]
[1750968481551,12.12967562,142.77,142.74,7.003]
[1750968481758,36.82,142.79,142.73,4.49354999]
[1750968481957,5.12742865,142.78,142.73,4.49354999]
[1750968482146,5.12742865,142.77,142.73,4.49354999]
[1750968482348,7.0019,142.77,142.74,7.0031]
[1750968482550,36.82,142.79,142.73,4.49354999]
[1750968482748,5.12720841,142.78,142.73,4.49354999]
[1750968482958,5.12720841,142.77,142.75,7.0028]
[1750968483157,7.0016,142.78,142.75,7.0028]
[1750968483450,12.12942361,142.77,142.73,7.0034]
[1750968483657,7.0022,142.77,142.73,7.0034]
[1750968484251,7.0024,142.76,142.73,7.0034]
[1750968485265,7.0023,142.77,142.71,4.49354999]
[1750968485952,7.0023,142.77,142.73,7.0035]
[1750968486768,7.0023,142.76,142.73,7.0035]
[1750968490971,7.0028,142.75,142.73,7.0035]
[1750968491165,7.0028,142.75,142.72,7.004]
[1750968491766,41.31354999,142.79,142.69,36.82]
[1750968491767,10.16718908,142.77,142.69,36.82]
[1750968491967,5.12976583,142.76,142.69,36.82]
[1750968492166,5.12976583,142.75,142.69,36.82]
[1750968492368,5.12976583,142.74,142.69,36.82]
[1750968492675,5.12976583,142.73,142.68,4.49354999]
[1750968492868,36.82,142.75,142.7,7.0051]
[1750968493174,5.13084012,142.74,142.7,7.0051]
[1750968493372,36.82,142.75,142.7,7.0051]
[1750968493566,7.0039,142.73,142.7,7.0051]
[1750968494271,7.0035,142.74,142.7,7.0051]
[1750968494672,7.0035,142.74,142.71,7.0047]
[1750968495173,7.0035,142.74,142.71,7.0045]
[1750968495977,36.82,142.75,142.72,7.0042]
[1750968496182,36.82,142.78,142.7,4.49717001]
[1750968496472,12.1111514,142.77,142.73,7.0035]
[1750968496676,7.0023,142.77,142.73,7.0035]
[1750968496869,36.82,142.78,142.73,7.0035]
[1750968497077,5.10881827,142.77,142.73,7.0035]
[1750968497280,36.82,142.78,142.73,7.0035]
[1750968497474,5.10872062,142.77,142.73,7.0035]
[1750968497672,36.82,142.78,142.73,7.0035]
[1750968497868,7.0026,142.76,142.72,7.004]
[1750968498073,7.0026,142.76,142.7,4.49717001]
[1750968499267,7.0026,142.76,142.73,7.0037]
[1750968499786,36.82,142.78,142.73,7.0037]
[1750968499982,5.10914274,142.77,142.73,7.0037]
[1750968500175,5.10914274,142.76,142.73,7.0037]
[1750968500369,7.0025,142.76,142.73,7.0037]
[1750968501382,7.0021,142.77,142.74,7.0033]
[1750968501578,5.10951519,142.76,142.74,7.0033]
[1750968501782,7.0021,142.77,142.74,7.0033]
[1750968503278,5.11018211,142.76,142.74,7.0033]
[1750968503579,7.0021,142.77,142.74,7.0033]
[1750968503773,5.11018211,142.76,142.72,4.49437539]
[1750968504076,7.0021,142.77,142.75,7.0028]
[1750968504572,7.0021,142.77,142.74,7.0031]
[1750968505381,5.15594026,142.76,142.74,7.0031]
[1750968505581,7.0021,142.77,142.74,7.0031]
[1750968505772,5.15594026,142.76,142.74,7.0031]
[1750968505975,7.0021,142.77,142.74,7.0031]
[1750968506170,5.15594026,142.76,142.74,7.0031]
[1750968506375,7.0021,142.77,142.74,7.0031]
[1750968506579,5.15653575,142.76,142.74,7.0031]
[1750968506870,7.0021,142.77,142.74,7.0031]
[1750968507076,5.15653575,142.76,142.74,7.0031]
[1750968507275,7.0021,142.77,142.74,7.0031]
[1750968507479,5.1572069,142.76,142.74,7.0031]
[1750968507683,7.0021,142.77,142.74,7.0031]
[1750968507881,5.15735322,142.76,142.74,7.0031]
[1750968508179,36.82,142.78,142.74,7.0031]
[1750968508380,5.15852287,142.77,142.74,7.0031]
[1750968508580,5.15852287,142.76,142.74,7.0031]
[1750968508786,36.82,142.78,142.74,7.0031]
[1750968508993,7.002,142.77,142.74,7.0031]
[1750968509282,12.16066922,142.77,142.74,7.0031]
[1750968509486,5.15866922,142.76,142.74,7.0031]
[1750968509682,7.002,142.77,142.74,7.0031]
[1750968509883,5.16029481,142.76,142.74,7.0031]
[1750968510083,5.16225923,142.75,142.74,7.0031]
[1750968510484,43.8216,142.78,142.75,7.0025]
[1750968510682,5.16200172,142.77,142.75,7.0025]
[1750968510881,5.16200172,142.76,142.75,7.0025]
[1750968512081,5.16200172,142.76,142.74,7.0029]
[1750968512282,7.0018,142.77,142.74,7.0029]
[1750968512482,5.16337648,142.76,142.74,7.0029]
[1750968512682,7.0018,142.77,142.74,7.0029]
[1750968512882,5.16352248,142.76,142.74,7.0029]
[1750968513088,7.0018,142.77,142.74,7.0029]
[1750968513291,5.16371054,142.76,142.74,7.0029]
[1750968513489,7.0018,142.77,142.74,7.0029]
[1750968513686,5.16377025,142.76,142.74,7.0029]
[1750968513886,7.0024,142.76,142.74,7.0029]
[1750968514084,5.16388593,142.75,142.74,7.0029]
[1750968514278,7.0024,142.76,142.74,7.0029]
[1750968515192,7.0024,142.76,142.73,11.49817796]
[1750968515595,7.0024,142.76,142.73,4.49467796]
[1750968516088,36.82,142.78,142.73,4.49467796]
[1750968516392,5.16427594,142.77,142.73,4.49467796]
[1750968516591,5.16427594,142.76,142.74,7.003]
[1750968516894,7.0019,142.77,142.74,7.003]
[1750968517093,5.16426881,142.76,142.74,7.003]
[1750968517294,7.0019,142.77,142.75,7.0028]
[1750968518392,7.0019,142.77,142.74,7.0031]
[1750968518590,5.16427103,142.76,142.74,7.0031]